fUSD/lending_fUSD_20250623
["ID","MTS","AMOUNT","RATE_DAILY","PERIOD"]
[367213196,1750703439244,-1186.95,0.00022881,2]
[367213198,1750703439253,-600.07,0.00022881,2]
[367213200,1750703439263,-694.45,0.00022881,2]
[367213202,1750703439272,-490.0,0.00022881,2]
[367213204,1750703439281,-2086.48,0.00022881,2]
[367213206,1750703439291,-490.0,0.00022881,2]
[367213208,1750703439300,-490.0,0.00022881,2]
[367213210,1750703439309,-255.87206011,0.00022881,2]
[367213212,1750703439318,-490.0,0.00022881,2]
[367213214,1750703439328,-514.34,0.00022881,2]
[367213216,1750703439337,-490.0,0.00022881,2]
[367213218,1750703439346,-490.0,0.00022881,2]
[367213220,1750703439356,-490.0,0.00022881,2]
[367213222,1750703439365,-2209.25,0.00022881,2]
[367213224,1750703439375,-500.0,0.00022881,2]
[367213226,1750703439385,-490.0,0.00022881,2]
[367213228,1750703439395,-490.0,0.00022881,2]
[367213230,1750703439404,-492.38435121,0.00022882,2]
[367213232,1750703439413,-514.93,0.00022882,2]
[367213234,1750703439422,-490.0,0.00022882,2]
[367213236,1750703439432,-490.0,0.00022882,2]
[367213238,1750703439441,-490.0,0.00022882,2]
[367213241,1750703439452,-490.0,0.00022882,2]
[367213244,1750703439461,-490.0,0.00022882,2]
[367213246,1750703439471,-490.0,0.00022882,2]
[367213248,1750703439480,-490.0,0.00022882,2]
[367213250,1750703439489,-490.0,0.00022882,2]
[367213252,1750703439498,-490.0,0.00022882,2]
[367213256,1750703439508,-561.77385338,0.00022882,2]
[367213258,1750703439517,-543.8,0.00022882,2]
[367213261,1750703439527,-161.11552215,0.00022882,2]
[367213263,1750703439537,-1006.91,0.00022882,2]
[367213265,1750703439547,-490.0,0.00022882,2]
[367213267,1750703439556,-490.0,0.00022882,2]
[367213268,1750703439565,-498.85,0.00022882,2]
[367213270,1750703439574,-490.0,0.00022882,2]
[367213273,1750703439584,-490.0,0.00022882,2]
[367213274,1750703439593,-490.0,0.00022882,2]
[367213277,1750703439603,-490.0,0.00022882,2]
[367213278,1750703439614,-490.0,0.00022882,2]
[367213281,1750703439626,-490.0,0.00022882,2]
[367213282,1750703439636,-490.0,0.00022882,2]
[367213284,1750703439645,-979.12,0.00022882,2]
[367213287,1750703439658,-649.28,0.00022882,2]
[367213289,1750703439666,-490.0,0.00022882,2]
[367213291,1750703439677,-490.0,0.00022882,2]
[367213292,1750703439686,-490.0,0.00022882,2]
[367213295,1750703439698,-550.25,0.00022882,2]
[367213297,1750703439709,-490.0,0.00022882,2]
[367213299,1750703439717,-490.0,0.00022882,2]
[367213301,1750703439727,-742.41,0.00022882,2]
[367213303,1750703439736,-487.19111733,0.00022882,2]
[367213304,1750703439745,-490.0,0.00022882,2]
[367213306,1750703439755,-490.0,0.00022882,2]
[367213308,1750703439764,-490.0,0.00022882,2]
[367213310,1750703439773,-490.0,0.00022882,2]
[367213312,1750703439783,-493.24278846,0.00022882,2]
[367213314,1750703439793,-555.66,0.00022882,2]
[367213316,1750703439803,-726.15,0.00022882,2]
[367213318,1750703439812,-490.0,0.00022882,2]
[367213320,1750703439826,-799.4,0.00022882,2]
[367213322,1750703439835,-490.0,0.00022882,2]
[367213324,1750703439846,-557.33,0.00022882,2]
[367213325,1750703439856,-540.25,0.00022882,2]
[367213327,1750703439865,-487.58669622,0.00022882,2]
[367213329,1750703439876,-944.87,0.00022882,2]
[367213331,1750703439887,-491.89745248,0.00022882,2]
[367213333,1750703439897,-217.062649,0.00022882,2]
[367213335,1750703439908,-1180.1,0.00022882,2]
[367213336,1750703439918,-715.97,0.00022882,2]
[367213338,1750703439928,-490.0,0.00022882,2]
[367213340,1750703439938,-652.03,0.00022882,2]
[367213342,1750703439947,-655.29,0.00022882,2]
[367213344,1750703439957,-946.15,0.00022882,2]
[367213345,1750703439967,-490.0,0.00022882,2]
[367213347,1750703439976,-217.495997,0.00022882,2]
[367213349,1750703439987,-490.0,0.00022882,2]
[367213351,1750703439997,-605.06,0.00022882,2]
[367213352,1750703440007,-492.08777401,0.00022882,2]
[367213354,1750703440023,-621.21,0.00022882,2]
[367213356,1750703440033,-1020.66,0.00022882,2]
[367213358,1750703440042,-604.822264,0.00022882,2]
[367213360,1750703440052,-490.0,0.00022882,2]
[367213362,1750703440062,-638.65,0.00022882,2]
[367213364,1750703440072,-490.0,0.00022882,2]
[367213365,1750703440083,-492.42936655,0.00022882,2]
[367213367,1750703440093,-490.0,0.00022882,2]
[367213369,1750703440103,-490.0,0.00022882,2]
[367213371,1750703440114,-492.73187281,0.00022882,2]
[367213373,1750703440124,-490.0,0.00022882,2]
[367213375,1750703440134,-602.05,0.00022882,2]
[367213376,1750703440144,-490.0,0.00022882,2]
[367213378,1750703440154,-490.0,0.00022882,2]
[367213380,1750703440164,-490.0,0.00022882,2]
[367213382,1750703440173,-491.50795234,0.00022882,2]
[367213384,1750703440183,-490.0,0.00022882,2]
[367213385,1750703440193,-1669.06,0.00022882,2]
[367213387,1750703440202,-490.0,0.00022882,2]
[367213389,1750703440213,-1100.47,0.00022882,2]
[367213391,1750703440223,-490.0,0.00022882,2]
[367213393,1750703440232,-882.73,0.00022882,2]
[367213395,1750703440242,-490.50596159,0.00022882,2]
[367213396,1750703440251,-490.0,0.00022882,2]
[367213398,1750703440261,-661.31,0.00022882,2]
[367213400,1750703440272,-490.0,0.00022882,2]
[367213402,1750703440281,-490.0,0.00022882,2]
[367213403,1750703440291,-490.0,0.00022882,2]
[367213405,1750703440302,-490.0,0.00022882,2]
[367213407,1750703440312,-496.70369613,0.00022882,2]
[367213409,1750703440322,-490.0,0.00022882,2]
[367213411,1750703440331,-964.77,0.00022882,2]
[367213413,1750703440341,-491.37483275,0.00022882,2]
[367213415,1750703440351,-490.0,0.00022882,2]
[367213417,1750703440361,-851.48,0.00022882,2]
[367213418,1750703440370,-490.0,0.00022882,2]
[367213420,1750703440381,-1048.39,0.00022882,2]
[367213422,1750703440391,-490.0,0.00022882,2]
[367213424,1750703440402,-490.0,0.00022882,2]
[367213426,1750703440411,-490.0,0.00022882,2]
[367213428,1750703440421,-299.444829,0.00022882,2]
[367213430,1750703440431,-831.49,0.00022882,2]
[367213431,1750703440441,-490.0,0.00022882,2]
[367213433,1750703440451,-490.0,0.00022882,2]
[367213435,1750703440460,-490.0,0.00022882,2]
[367213437,1750703440470,-490.0,0.00022882,2]
[367213439,1750703440480,-490.0,0.00022882,2]
[367213441,1750703440490,-820.93,0.00022882,2]
[367213443,1750703440500,-539.45,0.00022882,2]
[367213445,1750703440510,-490.0,0.00022882,2]
[367213447,1750703440520,-490.0,0.00022882,2]
[367213448,1750703440530,-567.69841414,0.00022882,2]
[367213450,1750703440540,-977.71,0.00022882,2]
[367213452,1750703440549,-490.0,0.00022882,2]
[367213454,1750703440559,-490.0,0.00022882,2]
[367213456,1750703440569,-1354.8,0.00022882,2]
[367213458,1750703440578,-490.0,0.00022882,2]
[367213460,1750703440587,-731.38,0.00022882,2]
[367213462,1750703440597,-490.76370165,0.00022882,2]
[367213463,1750703440607,-855.0,0.00022882,2]
[367213465,1750703440621,-490.0,0.00022882,2]
[367213467,1750703440630,-4689.32,0.00022882,2]
[367213469,1750703440639,-490.0,0.00022882,2]
[367213471,1750703440648,-547.97,0.00022882,2]
[367213473,1750703440658,-1759.87,0.00022882,2]
[367213475,1750703440668,-704.3,0.00022882,2]
[367213477,1750703440678,-163.363658,0.00022882,2]
[367213478,1750703440688,-490.0,0.00022882,2]
[367213480,1750703440699,-555.43,0.00022882,2]
[367213482,1750703440709,-1216.09,0.00022882,2]
[367213484,1750703440719,-497.36,0.00022882,2]
[367213486,1750703440728,-490.0,0.00022882,2]
[367213488,1750703440737,-491.20809093,0.00022882,2]
[367213490,1750703440746,-649.78,0.00022882,2]
[367213492,1750703440756,-565.85,0.00022882,2]
[367213493,1750703440766,-518.25,0.00022882,2]
[367213495,1750703440776,-2199.12,0.00022882,2]
[367213497,1750703440786,-500.0,0.00022882,2]
[367213499,1750703440795,-895.62,0.00022882,2]
[367213501,1750703440806,-640.44,0.00022882,2]
[367213503,1750703440816,-960.61,0.00022882,2]
[367213505,1750703440828,-490.0,0.00022882,2]
[367213507,1750703440838,-1677.04,0.00022882,2]
[367213508,1750703440849,-490.0,0.00022882,2]
[367213510,1750703440860,-2158.56,0.00022882,2]
[367213512,1750703440870,-634.08574993,0.00022882,2]
[367213514,1750703440879,-522.67,0.00022882,2]
[367213516,1750703440889,-1263.07,0.00022882,2]
[367213518,1750703440900,-2336.99,0.00022882,2]
[367213520,1750703440910,-490.74719341,0.00022882,2]
[367213522,1750703440920,-816.02,0.00022882,2]
[367213523,1750703440929,-1028.94,0.00022882,2]
[367213525,1750703440939,-490.0,0.00022882,2]
[367213527,1750703440948,-338.79393871,0.00022882,2]
[367213529,1750703440959,-490.0,0.00022882,2]
[367213531,1750703440969,-490.0,0.00022882,2]
[367213533,1750703440978,-1233.7,0.00022882,2]
[367213535,1750703440988,-1117.47,0.00022882,2]
[367213537,1750703440998,-623.01245954,0.00022882,2]
[367213538,1750703441007,-2483.6,0.00022882,2]
[367213540,1750703441017,-886.54,0.00022882,2]
[367213542,1750703441027,-1455.26,0.00022882,2]
[367213544,1750703441036,-797.87,0.00022882,2]
[367213546,1750703441046,-490.0,0.00022882,2]
[367213548,1750703441055,-490.0,0.00022882,2]
[367213550,1750703441065,-994.91,0.00022882,2]
[367213552,1750703441074,-1064.39,0.00022882,2]
[367213553,1750703441084,-1518.01,0.00022882,2]
[367213555,1750703441094,-1760.85,0.00022882,2]
[367213557,1750703441103,-877.52,0.00022882,2]
[367213559,1750703441112,-490.0,0.00022882,2]
[367213561,1750703441122,-471.14877919,0.00022882,2]
[367213563,1750703441133,-963.8,0.00022882,2]
[367213565,1750703441142,-932.37,0.00022882,2]
[367213567,1750703441152,-490.0,0.00022882,2]
[367213569,1750703441161,-1045.91,0.00022882,2]
[367213570,1750703441171,-7561.8,0.00022882,2]
[367213572,1750703441181,-490.0,0.00022882,2]
[367213574,1750703441191,-841.5,0.00022882,2]
[367213576,1750703441201,-1237.37,0.00022882,2]
[367213578,1750703441210,-854.6,0.00022882,2]
[367213580,1750703441220,-953.81,0.00022882,2]
[367213582,1750703441229,-1148.34,0.00022882,2]
[367213584,1750703441239,-490.0,0.00022882,2]
[367213586,1750703441248,-1262.29,0.00022882,2]
[367213587,1750703441257,-1444.42,0.00022882,2]
[367213589,1750703441267,-490.0,0.00022882,2]
[367213591,1750703441277,-490.0,0.00022882,2]
[367213593,1750703441287,-490.0,0.00022882,2]
[367213595,1750703441296,-1041.14,0.00022882,2]
[367213597,1750703441306,-490.0,0.00022882,2]
[367213599,1750703441315,-490.0,0.00022882,2]
[367213601,1750703441324,-491.34781076,0.00022882,2]
[367213602,1750703441334,-2154.56,0.00022882,2]
[367213604,1750703441343,-962.13,0.00022882,2]
[367213606,1750703441353,-964.03,0.00022882,2]
[367213608,1750703441363,-2222.87,0.00022882,2]
[367213610,1750703441373,-827.95,0.00022882,2]
[367213612,1750703441387,-490.0,0.00022882,2]
[367213645,1750703441751,-490.0,0.00022882,2]
[367213647,1750703441761,-987.4,0.00022882,2]
[367213649,1750703441770,-2074.11,0.00022882,2]
[367213651,1750703441781,-490.0,0.00022882,2]
[367213652,1750703441790,-1051.72,0.00022882,2]
[367213654,1750703441801,-490.0,0.00022882,2]
[367213656,1750703441811,-490.0,0.00022882,2]
[367213658,1750703441820,-490.0,0.00022882,2]
[367213660,1750703441830,-490.0,0.00022882,2]
[367213662,1750703441839,-301.1284444,0.00022882,2]
[367213664,1750703441849,-1219.17,0.00022882,2]
[367213666,1750703441859,-630.84,0.00022882,2]
[367213668,1750703441868,-1059.99,0.00022882,2]
[367213669,1750703441878,-8511.08,0.00022882,2]
[367213671,1750703441891,-490.0,0.00022882,2]
[367213673,1750703441901,-784.77,0.00022882,2]
[367213675,1750703441911,-490.0,0.00022882,2]
[367213677,1750703441920,-507.95,0.00022882,2]
[367213679,1750703441930,-490.0,0.00022882,2]
[367213681,1750703441940,-742.98,0.00022882,2]
[367213683,1750703441950,-1021.87,0.00022882,2]
[367213685,1750703441959,-998.88,0.00022882,2]
[367213686,1750703441969,-988.23,0.00022882,2]
[367213688,1750703441979,-1161.51,0.00022882,2]
[367213690,1750703441988,-892.04,0.00022882,2]
[367213692,1750703441998,-490.0,0.00022882,2]
[367213694,1750703442007,-457.74607384,0.00022882,2]
[367213696,1750703442016,-672.29,0.00022882,2]
[367213698,1750703442025,-490.0,0.00022882,2]
[367213700,1750703442035,-895.8,0.00022882,2]
[367213701,1750703442045,-1796.74,0.00022882,2]
[367213703,1750703442054,-1497.0,0.00022882,2]
[367213705,1750703442063,-490.0,0.00022882,2]
[367213707,1750703442073,-1158.61,0.00022882,2]
[367213709,1750703442082,-490.0,0.00022882,2]
[367213711,1750703442092,-490.0,0.00022882,2]
[367213712,1750703442101,-1124.38,0.00022882,2]
[367213713,1750703442110,-491.50660046,0.00022882,2]
[367213714,1750703442119,-500.0,0.00022882,2]
[367213715,1750703442128,-785.72,0.00022882,2]
[367213716,1750703442137,-500.0,0.00022882,2]
[367213717,1750703442147,-2449.71,0.00022882,2]
[367213718,1750703442156,-152.43852948,0.00022882,2]
[367213719,1750703442166,-731.99,0.00022883,2]
[367213720,1750703442176,-565.01,0.00022883,2]
[367213721,1750703442185,-490.0,0.00022883,2]
[367213722,1750703442195,-490.0,0.00022883,2]
[367213723,1750703442204,-490.0,0.00022883,2]
[367213724,1750703442213,-520.63097403,0.00022883,2]
[367213725,1750703442222,-490.0,0.00022883,2]
[367213726,1750703442232,-490.0,0.00022883,2]
[367213727,1750703442241,-491.35216683,0.00022883,2]
[367213728,1750703442250,-490.0,0.00022883,2]
[367213729,1750703442259,-490.0,0.00022883,2]
[367213730,1750703442269,-490.0,0.00022883,2]
[367213731,1750703442278,-510.14,0.00022883,2]
[367213732,1750703442287,-491.84814796,0.00022883,2]
[367213733,1750703442297,-490.0,0.00022883,2]
[367213734,1750703442306,-489.6525516,0.00022883,2]
[367213735,1750703442315,-490.0,0.00022883,2]
[367213736,1750703442324,-490.0,0.00022883,2]
[367213737,1750703442333,-490.0,0.00022883,2]
[367213738,1750703442343,-500.0,0.00022883,2]
[367213739,1750703442352,-500.0,0.00022883,2]
[367213740,1750703442361,-490.0,0.00022883,2]
[367213741,1750703442370,-490.0,0.00022883,2]
[367213742,1750703442379,-490.0,0.00022883,2]
[367213744,1750703442389,-490.0,0.00022883,2]
[367213745,1750703442398,-490.0,0.00022883,2]
[367213747,1750703442407,-490.0,0.00022883,2]
[367213748,1750703442416,-1000.0,0.00022883,2]
[367213749,1750703442425,-490.0,0.00022883,2]
[367213751,1750703442435,-490.0,0.00022883,2]
[367213753,1750703442444,-490.0,0.00022883,2]
[367213755,1750703442454,-499.5,0.00022883,2]
[367213757,1750703442463,-490.0,0.00022883,2]
[367213760,1750703442473,-657.21,0.00022883,2]
[367213761,1750703442483,-490.0,0.00022883,2]
[367213764,1750703442492,-490.0,0.00022883,2]
[367213766,1750703442502,-490.0,0.00022883,2]
[367213768,1750703442512,-490.0,0.00022883,2]
[367213770,1750703442522,-490.0,0.00022883,2]
[367213772,1750703442532,-490.0,0.00022883,2]
[367213775,1750703442541,-490.0,0.00022883,2]
[367213778,1750703442550,-713.58735876,0.00022883,2]
[367213781,1750703442559,-490.0,0.00022883,2]
[367213783,1750703442569,-490.0,0.00022883,2]
[367213785,1750703442579,-599.79,0.00022883,2]
[367213787,1750703442588,-490.0,0.00022883,2]
[367213789,1750703442598,-490.0,0.00022883,2]
[367213792,1750703442608,-492.57937457,0.00022883,2]
[367213795,1750703442620,-528.33,0.00022883,2]
[367213798,1750703442630,-407.60373302,0.00022883,2]
[367213800,1750703442639,-490.0,0.00022883,2]
[367213802,1750703442649,-490.0,0.00022883,2]
[367213804,1750703442659,-490.0,0.00022883,2]
[367213806,1750703442670,-490.0,0.00022883,2]
[367213808,1750703442680,-490.0,0.00022883,2]
[367213810,1750703442693,-292.75,0.00022883,2]
[367213812,1750703442704,-490.0,0.00022883,2]
[367213814,1750703442713,-490.0,0.00022883,2]
[367213816,1750703442722,-655.84,0.00022883,2]
[367213818,1750703442732,-623.87,0.00022883,2]
[367213820,1750703442742,-490.0,0.00022883,2]
[367213822,1750703442751,-490.0,0.00022883,2]
[367213824,1750703442761,-490.0,0.00022883,2]
[367213827,1750703442770,-490.0,0.00022883,2]
[367213829,1750703442781,-490.0,0.00022883,2]
[367213832,1750703442791,-491.38968447,0.00022883,2]
[367213835,1750703442800,-492.13610519,0.00022883,2]
[367213838,1750703442810,-490.0,0.00022883,2]
[367213841,1750703442820,-490.0,0.00022883,2]
[367213844,1750703442830,-541.83,0.00022883,2]
[367213848,1750703442839,-808.94,0.00022883,2]
[367213851,1750703442849,-490.0,0.00022883,2]
[367213854,1750703442858,-490.0,0.00022883,2]
[367213857,1750703442868,-490.0,0.00022883,2]
[367213860,1750703442878,-634.72,0.00022883,2]
[367213863,1750703442888,-598.45,0.00022883,2]
[367213866,1750703442898,-490.0,0.00022883,2]
[367213869,1750703442908,-490.0,0.00022883,2]
[367213872,1750703442918,-490.0,0.00022883,2]
[367213875,1750703442927,-490.0,0.00022883,2]
[367213878,1750703442937,-490.0,0.00022883,2]
[367213881,1750703442946,-490.0,0.00022883,2]
[367213884,1750703442956,-490.0,0.00022883,2]
[367213887,1750703442966,-247.69658306,0.00022883,2]
[367213889,1750703442976,-253.2121094,0.00022883,2]
[367213891,1750703442985,-490.0,0.00022883,2]
[367213893,1750703442995,-490.0,0.00022883,2]
[367213895,1750703443006,-490.0,0.00022883,2]
[367213897,1750703443015,-490.0,0.00022883,2]
[367213899,1750703443025,-490.0,0.00022883,2]
[367213901,1750703443035,-490.0,0.00022883,2]
[367213903,1750703443045,-490.0,0.00022883,2]
[367213905,1750703443055,-490.0,0.00022883,2]
[367213907,1750703443065,-490.0,0.00022883,2]
[367213909,1750703443074,-490.0,0.00022883,2]
[367213911,1750703443083,-490.0,0.00022883,2]
[367213913,1750703443093,-490.0,0.00022883,2]
[367213915,1750703443102,-490.0,0.00022883,2]
[367213917,1750703443112,-490.0,0.00022883,2]
[367213919,1750703443121,-490.0,0.00022883,2]
[367213921,1750703443131,-490.0,0.00022883,2]
[367213923,1750703443140,-490.0,0.00022883,2]
[367213925,1750703443149,-490.0,0.00022883,2]
[367213927,1750703443159,-490.0,0.00022883,2]
[367213929,1750703443168,-490.0,0.00022883,2]
[367213931,1750703443178,-490.0,0.00022883,2]
[367213933,1750703443188,-490.0,0.00022883,2]
[367213936,1750703443198,-420.67230894,0.00022883,2]
[367213938,1750703443207,-490.0,0.00022883,2]
[367213940,1750703443216,-490.0,0.00022883,2]
[367213942,1750703443226,-490.0,0.00022883,2]
[367213944,1750703443237,-490.0,0.00022883,2]
[367213946,1750703443247,-490.0,0.00022883,2]
[367213948,1750703443256,-490.0,0.00022883,2]
[367213950,1750703443266,-490.0,0.00022883,2]
[367213952,1750703443275,-490.0,0.00022883,2]
[367213954,1750703443285,-490.0,0.00022883,2]
[367213956,1750703443294,-490.0,0.00022883,2]
[367213958,1750703443304,-490.0,0.00022883,2]
[367213960,1750703443313,-490.0,0.00022883,2]
[367213962,1750703443323,-490.0,0.00022883,2]
[367213964,1750703443332,-629.66,0.00022883,2]
[367213966,1750703443342,-490.0,0.00022883,2]
[367213968,1750703443351,-490.0,0.00022883,2]
[367213970,1750703443360,-174.12764731,0.00022883,2]
[367213972,1750703443370,-208.52981464,0.00022883,2]
[367213974,1750703443379,-1076.12,0.00022883,2]
[367213976,1750703443389,-490.0,0.00022883,2]
[367213978,1750703443399,-490.0,0.00022883,2]
[367213980,1750703443408,-490.0,0.00022883,2]
[367213982,1750703443419,-490.0,0.00022883,2]
[367213984,1750703443429,-663.99,0.00022883,2]
[367213986,1750703443439,-490.0,0.00022883,2]
[367213988,1750703443448,-490.0,0.00022883,2]
[367213990,1750703443458,-490.0,0.00022883,2]
[367213992,1750703443468,-586.81,0.00022883,2]
[367213994,1750703443478,-490.0,0.00022883,2]
[367213996,1750703443489,-490.0,0.00022883,2]
[367213998,1750703443498,-667.49,0.00022883,2]
[367214000,1750703443508,-490.0,0.00022883,2]
[367214002,1750703443519,-504.12,0.00022883,2]
[367214004,1750703443529,-490.0,0.00022883,2]
[367214006,1750703443539,-490.0,0.00022883,2]
[367214008,1750703443550,-490.0,0.00022883,2]
[367214010,1750703443562,-490.0,0.00022883,2]
[367214012,1750703443572,-500.0,0.00022883,2]
[367214014,1750703443582,-500.0,0.00022883,2]
[367214016,1750703443592,-234.01706106,0.00022883,2]
[367214018,1750703443602,-490.0,0.00022883,2]
[367214020,1750703443614,-490.0,0.00022883,2]
[367214022,1750703443627,-490.0,0.00022883,2]
[367214024,1750703443639,-1084.72,0.00022883,2]
[367214026,1750703443649,-490.0,0.00022883,2]
[367214028,1750703443661,-490.0,0.00022883,2]
[367214031,1750703443672,-490.0,0.00022883,2]
[367214033,1750703443681,-490.0,0.00022883,2]
[367214035,1750703443692,-490.0,0.00022883,2]
[367214037,1750703443703,-490.0,0.00022883,2]
[367214039,1750703443713,-490.0,0.00022883,2]
[367214041,1750703443723,-490.0,0.00022883,2]
[367214043,1750703443734,-490.0,0.00022883,2]
[367214045,1750703443747,-490.0,0.00022883,2]
[367214047,1750703443757,-490.0,0.00022883,2]
[367214049,1750703443768,-490.0,0.00022883,2]
[367214051,1750703443778,-508.65,0.00022883,2]
[367214053,1750703443789,-490.0,0.00022883,2]
[367214055,1750703443800,-490.0,0.00022883,2]
[367214058,1750703443813,-490.0,0.00022883,2]
[367214060,1750703443824,-1213.24,0.00022883,2]
[367214062,1750703443833,-490.0,0.00022883,2]
[367214064,1750703443844,-490.0,0.00022883,2]
[367214066,1750703443854,-500.0,0.00022883,2]
[367214067,1750703443864,-490.0,0.00022883,2]
[367214069,1750703443874,-1041.2,0.00022883,2]
[367214072,1750703443886,-490.0,0.00022883,2]
[367214074,1750703443899,-1145.43,0.00022883,2]
[367214076,1750703443909,-490.0,0.00022883,2]
[367214078,1750703443920,-490.0,0.00022883,2]
[367214080,1750703443930,-551.36,0.00022883,2]
[367214082,1750703443940,-490.0,0.00022883,2]
[367214084,1750703443951,-490.0,0.00022883,2]
[367214086,1750703443960,-490.0,0.00022883,2]
[367214087,1750703443969,-490.0,0.00022883,2]
[367214089,1750703443979,-1426.73,0.00022883,2]
[367214091,1750703443989,-490.0,0.00022883,2]
[367214093,1750703443999,-490.0,0.00022883,2]
[367214096,1750703444008,-490.0,0.00022883,2]
[367214098,1750703444018,-490.0,0.00022883,2]
[367214100,1750703444028,-534.29418795,0.00022883,2]
[367214102,1750703444039,-1468.14,0.00022883,2]
[367214104,1750703444049,-490.0,0.00022883,2]
[367214106,1750703444058,-490.0,0.00022883,2]
[367214108,1750703444068,-490.0,0.00022883,2]
[367214110,1750703444078,-490.0,0.00022883,2]
[367214111,1750703444088,-490.0,0.00022883,2]
[367214113,1750703444097,-490.0,0.00022883,2]
[367214116,1750703444107,-490.0,0.00022883,2]
[367214117,1750703444117,-490.0,0.00022883,2]
[367214119,1750703444127,-490.0,0.00022883,2]
[367214122,1750703444139,-490.0,0.00022883,2]
[367214123,1750703444148,-490.0,0.00022883,2]
[367214137,1750703444243,-490.0,0.00022883,2]
[367214140,1750703444252,-490.0,0.00022883,2]
[367214142,1750703444262,-490.0,0.00022883,2]
[367214145,1750703444271,-490.0,0.00022883,2]
[367214148,1750703444281,-490.0,0.00022883,2]
[367214150,1750703444290,-1285.02,0.00022883,2]
[367214152,1750703444300,-490.0,0.00022883,2]
[367214154,1750703444309,-490.0,0.00022883,2]
[367214156,1750703444319,-490.0,0.00022883,2]
[367214158,1750703444328,-1900.28,0.00022883,2]
[367214160,1750703444338,-490.0,0.00022883,2]
[367214162,1750703444347,-854.48,0.00022883,2]
[367214164,1750703444357,-490.0,0.00022883,2]
[367214166,1750703444366,-1534.0,0.00022883,2]
[367214168,1750703444376,-490.0,0.00022883,2]
[367214170,1750703444386,-663.49,0.00022883,2]
[367214172,1750703444395,-778.53,0.00022883,2]
[367214174,1750703444404,-490.0,0.00022883,2]
[367214176,1750703444414,-490.0,0.00022883,2]
[367214178,1750703444423,-522.39,0.00022883,2]
[367214180,1750703444432,-490.0,0.00022883,2]
[367214182,1750703444442,-490.0,0.00022883,2]
[367214184,1750703444450,-490.0,0.00022883,2]
[367214186,1750703444460,-592.61,0.00022883,2]
[367214188,1750703444469,-490.0,0.00022883,2]
[367214190,1750703444479,-490.0,0.00022883,2]
[367214191,1750703444488,-490.0,0.00022883,2]
[367214193,1750703444498,-490.0,0.00022883,2]
[367214195,1750703444507,-549.39,0.00022883,2]
[367214197,1750703444516,-490.0,0.00022883,2]
[367214199,1750703444525,-490.0,0.00022883,2]
[367214201,1750703444535,-765.56,0.00022883,2]
[367214204,1750703444545,-1139.06,0.00022883,2]
[367214206,1750703444555,-490.0,0.00022883,2]
[367214208,1750703444564,-490.0,0.00022883,2]
[367214209,1750703444573,-490.0,0.00022883,2]
[367214211,1750703444583,-490.0,0.00022883,2]
[367214213,1750703444592,-1153.72,0.00022883,2]